fUSD/lending_fUSD_20250809
["ID","MTS","AMOUNT","RATE_DAILY","PERIOD"]
[378086509,1754719844722,-400.0,0.00024657,2]
[378086511,1754719844733,-400.0,0.00024657,2]
[378086513,1754719844742,-400.0,0.00024657,2]
[378086515,1754719844752,-400.0,0.00024657,2]
[378086517,1754719844760,-400.0,0.00024657,2]
[378086519,1754719844770,-400.0,0.00024657,2]
[378086521,1754719844780,-412.14200386,0.00024657,2]
[378086523,1754719844789,-676.12,0.00024657,2]
[378086525,1754719844798,-400.0,0.00024657,2]
[378086527,1754719844807,-400.0,0.00024657,2]
[378086529,1754719844816,-405.65358386,0.00024657,2]
[378086531,1754719844826,-400.0,0.00024657,2]
[378086533,1754719844835,-400.0,0.00024657,2]
[378086535,1754719844844,-400.0,0.00024657,2]
[378086537,1754719844853,-918.09,0.00024657,2]
[378086539,1754719844863,-400.0,0.00024657,2]
[378086541,1754719844873,-406.50848233,0.00024657,2]
[378086543,1754719844883,-400.0,0.00024657,2]
[378086545,1754719844893,-400.0,0.00024657,2]
[378086547,1754719844903,-400.0,0.00024657,2]
[378086549,1754719844913,-400.0,0.00024657,2]
[378086551,1754719844923,-441.75,0.00024657,2]
[378086553,1754719844934,-400.0,0.00024657,2]
[378086555,1754719844945,-469.47882023,0.00024657,2]
[378086557,1754719844958,-400.0,0.00024657,2]
[378086559,1754719844969,-639.77,0.00024657,2]
[378086561,1754719844978,-496.31233821,0.00024657,2]
[378086563,1754719844988,-430.15,0.00024657,2]
[378086565,1754719844998,-400.0,0.00024657,2]
[378086567,1754719845008,-400.0,0.00024657,2]
[378086569,1754719845018,-400.0,0.00024657,2]
[378086571,1754719845031,-498.42,0.00024657,2]
[378086573,1754719845041,-499.32,0.00024657,2]
[378086576,1754719845051,-400.0,0.00024657,2]
[378086578,1754719845061,-400.0,0.00024657,2]
[378086580,1754719845071,-401.07327044,0.00024657,2]
[378086582,1754719845080,-400.0,0.00024657,2]
[378086584,1754719845090,-400.0,0.00024657,2]
[378086586,1754719845100,-400.0,0.00024657,2]
[378086588,1754719845109,-400.0,0.00024657,2]
[378086590,1754719845119,-563.05,0.00024657,2]
[378086592,1754719845128,-400.0,0.00024657,2]
[378086594,1754719845138,-497.29,0.00024657,2]
[378086596,1754719845147,-400.0,0.00024657,2]
[378086598,1754719845158,-408.98,0.00024657,2]
[378086600,1754719845167,-400.0,0.00024657,2]
[378086602,1754719845177,-405.16928438,0.00024657,2]
[378086604,1754719845186,-400.0,0.00024657,2]
[378086606,1754719845196,-906.01,0.00024657,2]
[378086608,1754719845208,-400.0,0.00024657,2]
[378086610,1754719845217,-400.0,0.00024657,2]
[378086612,1754719845227,-400.0,0.00024657,2]
[378086614,1754719845236,-403.63037539,0.00024657,2]
[378086616,1754719845246,-620.04,0.00024657,2]
[378086618,1754719845255,-400.0,0.00024657,2]
[378086620,1754719845265,-404.19054586,0.00024657,2]
[378086622,1754719845274,-401.43306039,0.00024657,2]
[378086624,1754719845283,-400.0,0.00024657,2]
[378086626,1754719845293,-400.0,0.00024657,2]
[378086628,1754719845303,-400.0,0.00024657,2]
[378086630,1754719845312,-400.0,0.00024657,2]
[378086632,1754719845322,-402.08948844,0.00024657,2]
[378086634,1754719845332,-403.76729436,0.00024657,2]
[378086636,1754719845341,-400.0,0.00024657,2]
[378086638,1754719845351,-400.0,0.00024657,2]
[378086640,1754719845361,-400.0,0.00024657,2]
[378086642,1754719845371,-400.0,0.00024657,2]
[378086644,1754719845381,-402.52222525,0.00024657,2]
[378086646,1754719845390,-410.25765266,0.00024657,2]
[378086648,1754719845400,-402.944304,0.00024657,2]
[378086650,1754719845410,-400.0,0.00024657,2]
[378086652,1754719845420,-400.0,0.00024657,2]
[378086654,1754719845430,-402.5849967,0.00024657,2]
[378086656,1754719845439,-401.80555921,0.00024657,2]
[378086658,1754719845450,-400.0,0.00024657,2]
[378086660,1754719845460,-401.92641346,0.00024657,2]
[378086662,1754719845469,-400.0,0.00024657,2]
[378086664,1754719845479,-400.0,0.00024657,2]
[378086666,1754719845488,-400.0,0.00024657,2]
[378086668,1754719845497,-400.0,0.00024657,2]
[378086670,1754719845506,-400.0,0.00024657,2]
[378086672,1754719845515,-400.0,0.00024657,2]
[378086674,1754719845530,-400.0,0.00024657,2]
[378086676,1754719845539,-400.0,0.00024657,2]
[378086678,1754719845549,-400.0,0.00024657,2]
[378086680,1754719845558,-498.91,0.00024657,2]
[378086682,1754719845569,-952.18,0.00024657,2]
[378086684,1754719845578,-2454.69,0.00024657,2]
[378086686,1754719845588,-400.0,0.00024657,2]
[378086688,1754719845600,-400.0,0.00024657,2]
[378086690,1754719845609,-400.0,0.00024657,2]
[378086692,1754719845618,-400.0,0.00024657,2]
[378086694,1754719845628,-400.0,0.00024657,2]
[378086696,1754719845637,-400.0,0.00024657,2]
[378086698,1754719845646,-408.3316554,0.00024657,2]
[378086700,1754719845656,-464.61,0.00024657,2]
[378086702,1754719845666,-400.0,0.00024657,2]
[378086704,1754719845675,-416.13,0.00024657,2]
[378086706,1754719845685,-477.38,0.00024657,2]
[378086708,1754719845694,-400.0,0.00024657,2]
[378086710,1754719845707,-636.46,0.00024657,2]
[378086712,1754719845716,-400.0,0.00024657,2]
[378086714,1754719845725,-400.0,0.00024657,2]
[378086716,1754719845734,-400.0,0.00024657,2]
[378086718,1754719845744,-410.54188544,0.00024657,2]
[378086720,1754719845756,-400.0,0.00024657,2]
[378086722,1754719845767,-402.8567412,0.00024657,2]
[378086724,1754719845776,-400.0,0.00024657,2]
[378086726,1754719845785,-400.0,0.00024657,2]
[378086728,1754719845794,-422.20111456,0.00024657,2]
[378086730,1754719845804,-400.0,0.00024657,2]
[378086732,1754719845814,-507.97,0.00024657,2]
[378086734,1754719845823,-400.0,0.00024657,2]
[378086737,1754719845832,-400.0,0.00024657,2]
[378086739,1754719845842,-400.0,0.00024657,2]
[378086742,1754719845852,-401.84925084,0.00024657,2]
[378086744,1754719845861,-646.6,0.00024657,2]
[378086746,1754719845871,-400.0,0.00024657,2]
[378086748,1754719845881,-400.0,0.00024657,2]
[378086750,1754719845891,-400.0,0.00024657,2]
[378086752,1754719845900,-400.0,0.00024657,2]
[378086754,1754719845910,-400.0,0.00024657,2]
[378086755,1754719845920,-401.87514633,0.00024657,2]
[378086757,1754719845931,-400.0,0.00024657,2]
[378086760,1754719845940,-400.0,0.00024657,2]
[378086767,1754719846008,-400.0,0.00024657,2]
[378086770,1754719846018,-421.31,0.00024657,2]
[378086772,1754719846028,-401.49922826,0.00024657,2]
[378086774,1754719846037,-400.0,0.00024657,2]
[378086775,1754719846046,-419.10249663,0.00024657,2]
[378086778,1754719846056,-402.26789393,0.00024657,2]
[378086779,1754719846065,-401.29965188,0.00024657,2]
[378086781,1754719846074,-400.0,0.00024657,2]
[378086784,1754719846084,-400.0,0.00024657,2]
[378086786,1754719846093,-400.0,0.00024657,2]
[378086788,1754719846102,-400.0,0.00024657,2]
[378086790,1754719846111,-388.95105745,0.00024657,2]
[378086839,1754719846575,-140.55894255,0.00024657,2]
[378086841,1754719846584,-401.84777131,0.00024657,2]
[378086843,1754719846593,-400.0,0.00024657,2]
[378086845,1754719846603,-400.0,0.00024657,2]
[378086847,1754719846612,-400.0,0.00024657,2]
[378086849,1754719846621,-400.72307508,0.00024657,2]
[378086851,1754719846630,-400.0,0.00024657,2]
[378086853,1754719846639,-1058.76,0.00024657,2]
[378086855,1754719846648,-400.0,0.00024657,2]
[378086857,1754719846658,-400.0,0.00024657,2]
[378086859,1754719846667,-400.0,0.00024657,2]
[378086861,1754719846676,-401.74640738,0.00024657,2]
[378086863,1754719846685,-400.0,0.00024657,2]
[378086865,1754719846694,-582.62,0.00024657,2]
[378086866,1754719846703,-400.0,0.00024657,2]
[378086867,1754719846712,-400.0,0.00024657,2]
[378086868,1754719846724,-400.0,0.00024657,2]
[378086869,1754719846734,-342.74388107,0.00024657,2]
[378086870,1754719846743,-400.0,0.00024657,2]
[378086871,1754719846753,-667.62,0.00024657,2]
[378086872,1754719846762,-400.0,0.00024657,2]
[378086873,1754719846771,-542.51458178,0.00024657,2]
[378086874,1754719846780,-400.0,0.00024657,2]
[378086875,1754719846789,-400.0,0.00024657,2]
[378086876,1754719846799,-400.0,0.00024657,2]
[378086877,1754719846808,-403.65227937,0.00024657,2]
[378086878,1754719846817,-531.65,0.00024657,2]
[378086880,1754719846827,-400.0,0.00024657,2]
[378086882,1754719846838,-400.0,0.00024657,2]
[378086884,1754719846847,-400.0,0.00024657,2]
[378086886,1754719846857,-400.0,0.00024657,2]
[378086888,1754719846867,-567.3,0.00024657,2]
[378086891,1754719846876,-400.0,0.00024657,2]
[378086892,1754719846885,-405.24499859,0.00024657,2]
[378086895,1754719846895,-400.0,0.00024657,2]
[378086897,1754719846904,-400.0,0.00024657,2]
[378086898,1754719846913,-400.0,0.00024657,2]
[378086901,1754719846923,-400.0,0.00024657,2]
[378086903,1754719846932,-402.32609133,0.00024657,2]
[378086904,1754719846942,-413.22766166,0.00024657,2]
[378086906,1754719846951,-400.0,0.00024657,2]
[378086908,1754719846961,-400.0,0.00024657,2]
[378086910,1754719846970,-400.0,0.00024657,2]
[378086912,1754719846979,-400.0,0.00024657,2]
[378086914,1754719846989,-934.87,0.00024657,2]
[378086916,1754719846999,-400.0,0.00024657,2]
[378086918,1754719847008,-400.0,0.00024657,2]
[378086920,1754719847017,-400.0,0.00024657,2]
[378086922,1754719847029,-400.0,0.00024657,2]
[378086924,1754719847039,-402.22828921,0.00024657,2]
[378086926,1754719847048,-586.46,0.00024657,2]
[378086928,1754719847057,-1031.86,0.00024657,2]
[378086930,1754719847067,-400.0,0.00024657,2]
[378086932,1754719847076,-401.60133771,0.00024657,2]
[378086934,1754719847086,-400.0,0.00024657,2]
[378086936,1754719847095,-483.12726367,0.00024657,2]
[378086938,1754719847104,-400.0,0.00024657,2]
[378086940,1754719847114,-435.99,0.00024657,2]
[378086942,1754719847123,-400.0,0.00024657,2]
[378086944,1754719847133,-400.0,0.00024657,2]
[378086946,1754719847142,-400.0,0.00024657,2]
[378086948,1754719847151,-500.0,0.00024657,2]
[378086950,1754719847162,-400.0,0.00024657,2]
[378086952,1754719847171,-500.0,0.00024657,2]
[378086954,1754719847180,-500.0,0.00024657,2]
[378086956,1754719847190,-500.0,0.00024657,2]
[378086958,1754719847198,-500.0,0.00024657,2]
[378086960,1754719847208,-500.0,0.00024657,2]
[378086962,1754719847218,-400.0,0.00024657,2]
[378086964,1754719847227,-401.33583813,0.00024657,2]
[378086966,1754719847237,-400.0,0.00024657,2]
[378086968,1754719847246,-400.0,0.00024657,2]
[378086970,1754719847255,-400.0,0.00024657,2]
[378086973,1754719847265,-640.62,0.00024657,2]
[378086975,1754719847274,-400.0,0.00024657,2]
[378086977,1754719847283,-405.97,0.00024657,2]
[378086978,1754719847292,-400.0,0.00024657,2]
[378086980,1754719847301,-400.0,0.00024657,2]
[378086982,1754719847311,-400.0,0.00024657,2]
[378086984,1754719847320,-400.0,0.00024657,2]
[378086986,1754719847330,-400.0,0.00024657,2]
[378086988,1754719847339,-400.0,0.00024657,2]
[378086990,1754719847348,-400.0,0.00024657,2]
[378086992,1754719847358,-400.0,0.00024657,2]
[378086994,1754719847367,-401.46032802,0.00024657,2]
[378086996,1754719847376,-405.79747184,0.00024657,2]
[378086998,1754719847385,-400.0,0.00024657,2]
[378087000,1754719847395,-414.01,0.00024657,2]
[378087002,1754719847404,-402.68030903,0.00024657,2]
[378087004,1754719847414,-400.0,0.00024657,2]
[378087006,1754719847424,-400.0,0.00024657,2]
[378087008,1754719847433,-400.0,0.00024657,2]
[378087010,1754719847442,-400.0,0.00024657,2]
[378087012,1754719847452,-1114.03,0.00024657,2]
[378087014,1754719847462,-400.0,0.00024657,2]
[378087016,1754719847471,-400.0,0.00024657,2]
[378087018,1754719847480,-403.32196414,0.00024657,2]
[378087020,1754719847489,-500.0,0.00024657,2]
[378087022,1754719847499,-500.0,0.00024657,2]
[378087024,1754719847508,-500.0,0.00024657,2]
[378087026,1754719847519,-400.0,0.00024657,2]
[378087028,1754719847540,-400.0,0.00024657,2]
[378087030,1754719847549,-400.0,0.00024657,2]
[378087032,1754719847558,-400.0,0.00024657,2]
[378087034,1754719847568,-462.28,0.00024657,2]
[378087036,1754719847577,-2384.08,0.00024657,2]
[378087038,1754719847587,-400.0,0.00024657,2]
[378087039,1754719847596,-400.0,0.00024657,2]
[378087041,1754719847605,-402.30624307,0.00024657,2]
[378087044,1754719847622,-400.0,0.00024657,2]
[378087046,1754719847637,-986.24,0.00024657,2]
[378087047,1754719847653,-400.0,0.00024657,2]
[378087049,1754719847663,-851.53,0.00024657,2]
[378087051,1754719847672,-400.0,0.00024657,2]
[378087053,1754719847681,-400.0,0.00024657,2]
[378087055,1754719847690,-400.0,0.00024657,2]
[378087057,1754719847699,-400.0,0.00024657,2]
[378087059,1754719847708,-419.76,0.00024657,2]
[378087061,1754719847717,-400.0,0.00024657,2]
[378087063,1754719847727,-400.0,0.00024657,2]
[378087065,1754719847736,-1000.0,0.00024657,2]
[378087067,1754719847747,-400.0,0.00024657,2]
[378087069,1754719847756,-400.0,0.00024657,2]
[378087071,1754719847765,-400.4614558,0.00024657,2]
[378087073,1754719847774,-400.0,0.00024657,2]
[378087075,1754719847783,-400.0,0.00024657,2]
[378087077,1754719847793,-400.0,0.00024657,2]
[378087079,1754719847802,-400.0,0.00024657,2]
[378087081,1754719847813,-400.0,0.00024657,2]
[378087083,1754719847822,-516.21,0.00024657,2]
[378087085,1754719847832,-400.0,0.00024657,2]
[378087087,1754719847841,-400.0,0.00024657,2]
[378087089,1754719847850,-400.0,0.00024657,2]
[378087091,1754719847859,-473.67,0.00024657,2]
[378087093,1754719847868,-692.0,0.00024657,2]
[378087095,1754719847878,-400.0,0.00024657,2]
[378087097,1754719847887,-400.0,0.00024657,2]
[378087099,1754719847896,-400.0,0.00024657,2]
[378087101,1754719847905,-401.59190683,0.00024657,2]
[378087103,1754719847915,-880.22,0.00024657,2]
[378087105,1754719847925,-535.68,0.00024657,2]
[378087107,1754719847935,-400.0,0.00024657,2]
[378087109,1754719847944,-500.0,0.00024657,2]
[378087111,1754719847954,-500.0,0.00024657,2]
[378087113,1754719847963,-401.38962981,0.00024657,7]
[378087115,1754719847973,-500.0,0.00024657,2]
[378087117,1754719847982,-400.0,0.00024657,2]
[378087119,1754719847992,-400.0,0.00024657,2]
[378087121,1754719848001,-400.0,0.00024657,2]
[378087123,1754719848011,-400.0,0.00024657,2]
[378087125,1754719848020,-400.0,0.00024657,2]
[378087127,1754719848030,-400.0,0.00024657,2]
[378087129,1754719848039,-404.24540633,0.00024657,2]
[378087131,1754719848049,-400.0,0.00024657,2]
[378087133,1754719848059,-487.04241985,0.00024657,2]
[378087135,1754719848069,-516.19,0.00024657,2]
[378087137,1754719848080,-400.0,0.00024657,2]
[378087139,1754719848089,-400.0,0.00024657,2]
[378087141,1754719848100,-465.45299091,0.00024657,2]
[378087143,1754719848110,-400.0,0.00024657,2]
[378087145,1754719848120,-400.0,0.00024657,2]
[378087147,1754719848131,-798.51,0.00024657,2]
[378087149,1754719848142,-407.39749898,0.00024657,2]
[378087151,1754719848152,-723.36,0.00024657,2]
[378087153,1754719848162,-400.0,0.00024657,2]
[378087155,1754719848172,-45718.66133214,0.00024657,2]
[378087157,1754719848182,-400.0,0.00024657,2]
[378087159,1754719848193,-515.46460399,0.00024657,2]
[378087161,1754719848203,-400.0,0.00024657,2]
[378087163,1754719848213,-621.92,0.00024657,2]
[378087165,1754719848223,-400.0,0.00024657,2]
[378087167,1754719848234,-400.0,0.00024657,2]
[378087169,1754719848244,-400.0,0.00024657,2]
[378087171,1754719848254,-400.0,0.00024657,2]
[378087173,1754719848264,-282.6382413,0.00024657,2]
[378087175,1754719848274,-692.41,0.00024657,2]
[378087177,1754719848284,-400.0,0.00024657,2]
[378087179,1754719848295,-400.0,0.00024657,2]
[378087181,1754719848305,-400.0,0.00024657,2]
[378087183,1754719848315,-400.0,0.00024657,2]
[378087185,1754719848324,-400.0,0.00024657,2]
[378087187,1754719848334,-400.0,0.00024657,2]
[378087189,1754719848344,-402.33807266,0.00024657,2]
[378087191,1754719848354,-411.70459236,0.00024657,2]
[378087193,1754719848364,-400.0,0.00024657,2]
[378087195,1754719848374,-407.20658223,0.00024657,2]
[378087197,1754719848384,-1179.98,0.00024657,2]
[378087199,1754719848394,-400.0,0.00024657,2]
[378087201,1754719848404,-400.0,0.00024657,2]
[378087203,1754719848414,-400.0,0.00024657,2]
[378087205,1754719848425,-575.24,0.00024657,2]
[378087208,1754719848435,-506.91,0.00024657,2]
[378087210,1754719848445,-400.0,0.00024657,2]
[378087212,1754719848456,-400.0,0.00024657,2]
[378087213,1754719848467,-447.87,0.00024657,2]
[378087215,1754719848477,-400.0,0.00024657,2]
[378087218,1754719848487,-400.0,0.00024657,2]
[378087220,1754719848497,-400.0,0.00024657,2]
[378087221,1754719848507,-400.0,0.00024657,2]
[378087223,1754719848516,-400.0,0.00024657,2]
[378087225,1754719848528,-400.0,0.00024657,2]
[378087226,1754719848542,-400.0,0.00024657,2]
[378087227,1754719848552,-408.41201346,0.00024657,2]
[378087228,1754719848562,-400.0,0.00024657,2]
[378087229,1754719848572,-400.0,0.00024657,2]
[378087230,1754719848582,-400.0,0.00024657,2]
[378087231,1754719848591,-404.12308892,0.00024657,2]
[378087232,1754719848602,-400.0,0.00024657,2]
[378087233,1754719848612,-410.31580827,0.00024657,2]
[378087234,1754719848622,-400.0,0.00024657,2]
[378087235,1754719848632,-400.0,0.00024657,2]
[378087236,1754719848642,-400.0,0.00024657,2]
[378087237,1754719848652,-520.11,0.00024657,2]
[378087238,1754719848663,-401.82756657,0.00024657,2]
[378087239,1754719848673,-400.0,0.00024657,2]
[378087240,1754719848683,-400.0,0.00024657,2]
[378087241,1754719848693,-400.0,0.00024657,2]
[378087242,1754719848703,-400.0,0.00024657,2]
[378087243,1754719848712,-400.0,0.00024657,2]
[378087244,1754719848723,-400.0,0.00024657,2]
[378087245,1754719848734,-403.88269058,0.00024657,2]
[378087246,1754719848744,-541.87,0.00024657,2]
[378087247,1754719848756,-500.0,0.00024657,2]
[378087248,1754719848773,-400.0,0.00024657,2]
[378087249,1754719848784,-500.0,0.00024657,2]
[378087250,1754719848793,-500.0,0.00024657,2]
[378087251,1754719848803,-400.0,0.00024657,2]
[378087252,1754719848812,-400.0,0.00024657,2]
[378087253,1754719848822,-886.06,0.00024657,2]
[378087254,1754719848832,-439.96,0.00024657,2]
[378087255,1754719848842,-400.0,0.00024657,2]
[378087256,1754719848852,-400.0,0.00024657,2]
[378087257,1754719848861,-400.0,0.00024657,2]
[378087258,1754719848871,-400.0,0.00024657,2]
[378087259,1754719848882,-455.77,0.00024657,2]
[378087260,1754719848893,-400.0,0.00024657,2]
[378087261,1754719848903,-400.0,0.00024657,2]
[378087263,1754719848914,-400.0,0.00024657,2]
[378087265,1754719848924,-400.0,0.00024657,2]
[378087267,1754719848934,-401.30460272,0.00024657,2]
[378087269,1754719848944,-415.6,0.00024657,2]
[378087271,1754719848954,-573.16,0.00024657,2]
[378087273,1754719848966,-400.0,0.00024657,2]
[378087275,1754719848976,-902.02,0.00024657,2]
[378087277,1754719848986,-400.0,0.00024657,2]
[378087279,1754719848995,-400.0,0.00024657,2]
[378087281,1754719849005,-400.0,0.00024657,2]
[378087283,1754719849015,-409.99712364,0.00024657,2]
[378087285,1754719849025,-390.6737734,0.00024657,2]
[378087288,1754719849035,-1093.32,0.00024657,2]
[378087290,1754719849045,-406.12703857,0.00024657,2]
[378087292,1754719849056,-404.09274677,0.00024657,2]
[378087294,1754719849074,-400.0,0.00024657,2]
[378087296,1754719849089,-403.54648713,0.00024657,2]
[378087298,1754719849099,-400.0,0.00024657,2]
[378087300,1754719849109,-400.0,0.00024657,2]
[378087302,1754719849119,-400.0,0.00024657,2]
[378087304,1754719849129,-532.98,0.00024657,2]
[378087306,1754719849139,-639.61,0.00024657,2]
[378087308,1754719849149,-405.24993866,0.00024657,2]
[378087310,1754719849160,-349.54996886,0.00024657,2]
[378087312,1754719849170,-400.0,0.00024657,2]
[378087314,1754719849180,-564.35,0.00024657,2]
[378087316,1754719849190,-400.0,0.00024657,2]
[378087318,1754719849199,-1637.4,0.00024657,2]
[378087321,1754719849210,-459.35,0.00024657,2]
[378087323,1754719849220,-410.5901917,0.00024657,2]
[378087325,1754719849241,-400.0,0.00024657,2]
[378087327,1754719849253,-400.0,0.00024657,2]
[378087329,1754719849262,-500.0,0.00024657,2]
[378087331,1754719849271,-500.0,0.00024657,2]
[378087333,1754719849281,-500.0,0.00024657,2]
[378087335,1754719849291,-927.22,0.00024657,2]
[378087336,1754719849300,-400.0,0.00024657,2]
[378087337,1754719849309,-403.63757974,0.00024657,2]
[378087338,1754719849319,-404.11419064,0.00024657,2]
[378087339,1754719849328,-400.0,0.00024657,2]
[378087340,1754719849338,-400.0,0.00024657,2]
[378087341,1754719849347,-887.08,0.00024657,2]
[378087342,1754719849357,-400.0,0.00024657,2]
[378087343,1754719849367,-887.08,0.00024657,2]
[378087344,1754719849377,-443.11,0.00024657,2]
[378087345,1754719849387,-887.08,0.00024657,2]
[378087346,1754719849398,-400.0,0.00024657,2]
[378087347,1754719849415,-250.0,0.00024658,2]
[378087349,1754719849426,-500.0,0.00024658,2]
[378087351,1754719849436,-500.0,0.00024658,2]
[378087353,1754719849445,-500.0,0.00024658,2]
[378087355,1754719849456,-606.03437416,0.00024658,2]
[378087357,1754719849466,-150.0,0.00024658,2]
[378087359,1754719849475,-500.0,0.00024658,2]
[378087361,1754719849485,-929.0,0.00024658,2]
[378087363,1754719849495,-500.0,0.00024658,2]
[378087365,1754719849505,-500.0,0.00024673,2]
[378087367,1754719849515,-150.0,0.00024673,2]
[378087369,1754719849527,-501.33670321,0.00024673,2]
[378087371,1754719849537,-500.0,0.00024699,2]
[378087373,1754719849548,-156.2778412,0.000247,2]
[378087375,1754719849557,-800.0,0.000247,9]
[378087377,1754719849567,-1175.1664932,0.00024704,2]
[378087379,1754719849577,-155.79400246,0.00024704,2]
[378087381,1754719849586,-3092.74882421,0.00024719,2]
[378087383,1754719849596,-500.0,0.00024773,2]
[378087385,1754719849606,-504.44880532,0.00024773,2]
[378087388,1754719849615,-501.56375996,0.00024773,2]
[378087390,1754719849625,-150.0,0.00024775,2]
[378087392,1754719849634,-310.51953089,0.00024777,2]
[378087394,1754719849644,-395.76018643,0.00024778,2]
[378087396,1754719849653,-481.00084197,0.0002478,2]
[378087398,1754719849662,-566.2414975,0.00024782,2]
[378087400,1754719849672,-651.48215304,0.00024783,2]
[378087402,1754719849683,-736.72280858,0.00024785,2]
[378087404,1754719849692,-821.96346412,0.00024787,2]
[378087406,1754719849702,-907.20411966,0.00024788,2]
[378087408,1754719849714,-992.44477519,0.0002479,2]
[378087410,1754719849723,-512.65,0.00024799,2]
[378087412,1754719849733,-512.65,0.00024799,2]
[378087414,1754719849742,-500.0,0.00024799,2]
[378087416,1754719849752,-500.0,0.00024799,2]
[378087418,1754719849761,-500.0,0.00024799,2]
[378087420,1754719849771,-500.0,0.00024799,2]
[378087422,1754719849781,-500.0,0.00024799,2]
[378087424,1754719849790,-792.31,0.00024799,2]
[378087426,1754719849801,-874.47,0.00024799,2]
[378087428,1754719849811,-874.47,0.00024799,2]
[378087430,1754719849831,-605.43,0.00024799,2]
[378087432,1754719849843,-500.0,0.00024799,2]
[378087435,1754719849853,-500.0,0.00024799,2]
[378087437,1754719849862,-500.0,0.00024799,2]
[378087439,1754719849871,-500.0,0.00024799,2]
[378087441,1754719849881,-500.0,0.00024799,2]
[378087443,1754719849891,-500.0,0.00024799,2]
[378087445,1754719849901,-151.0,0.000248,7]
[378087447,1754719849912,-416.900374,0.000248,7]
[378087449,1754719849922,-416.900374,0.000248,7]
[378087451,1754719849932,-164.40527,0.000248,7]
[378087453,1754719849941,-164.40527,0.000248,7]
[378087455,1754719849951,-151.0,0.000248,7]
[378087457,1754719849961,-151.0,0.000248,7]
[378087459,1754719849971,-203.825468,0.000248,7]
[378087461,1754719849981,-151.0,0.000248,7]
[378087463,1754719849990,-151.0,0.000248,7]
[378087465,1754719850000,-151.0,0.000248,7]
[378087468,1754719850010,-151.0,0.000248,7]
[378087470,1754719850019,-174.511492,0.000248,7]
[378087472,1754719850028,-174.511492,0.000248,7]
[378087474,1754719850038,-151.0,0.000248,7]
[378087476,1754719850047,-152.815564,0.000248,7]
[378087478,1754719850057,-152.815564,0.000248,7]
[378087480,1754719850067,-151.0,0.000248,7]
[378087482,1754719850076,-152.481414,0.000248,7]
[378087484,1754719850086,-179.023397,0.000248,7]
[378087486,1754719850095,-179.023397,0.000248,7]
[378087488,1754719850104,-151.0,0.000248,7]
[378087490,1754719850113,-167.709934,0.000248,7]
[378087492,1754719850122,-167.709934,0.000248,7]
[378087494,1754719850132,-151.0,0.000248,7]
[378087496,1754719850142,-151.0,0.000248,7]
[378087498,1754719850151,-1200.0,0.000248,9]
[378087500,1754719850161,-245526.72954491,0.000248,2]
[378087504,1754719850192,-385.42858505,0.000248,2]
[378087507,1754719850208,-11680.0,0.000248,2]
[378087538,1754719850486,-1894.40208944,0.000248,2]